bitfinex-derivatives/quotes_ETHF0:USTF0_20241024
["timestamp","ask_amount","ask_price","bid_price","bid_amount"]
[1729776336802,0.39457,2536.4,2536.3,0.39456]
[1729776338904,0.4467,2536.5,2536.3,2.46245017]
[1729776339210,0.3945,2536.8,2536.7,0.39448]
[1729776339505,4.19393,2537.1,2536.7,0.39448]
[1729776339506,0.39449,2536.9,2536.8,0.39448]
[1729776339709,0.39449,2536.9,2536.8,0.84788]
[1729776340010,0.4423,2537.0,2536.9,0.39447]
[1729776340011,0.83676,2537.0,2536.9,0.39447]
[1729776343506,0.83676,2537.0,2536.8,0.4534]
[1729776343507,0.39447,2536.9,2536.8,0.4534]
[1729776343705,0.3945,2536.7,2536.6,4.9503]
[1729776344003,0.3945,2536.7,2536.6,1.7425]
[1729776345205,0.3945,2536.7,2536.6,1.348]
[1729776345408,0.3945,2536.7,2536.6,0.24485875]
[1729776345612,0.3945,2536.7,2536.6,1.348]
[1729776345906,0.3945,2536.7,2536.5,2.88875017]
[1729776346100,0.39452,2536.6,2536.5,4.23675017]
[1729776346298,0.39452,2536.6,2536.5,4.63128017]
[1729776346805,0.9133,2537.0,2536.7,0.39449]
[1729776346806,0.3945,2536.8,2536.7,0.39449]
[1729776346996,0.9133,2537.0,2536.7,2.46245017]
[1729776347201,0.9133,2537.0,2536.8,0.39447]
[1729776347202,0.39448,2536.9,2536.8,0.39447]
[1729776347401,0.39449,2536.8,2536.7,2.85694017]
[1729776347602,0.39448,2536.9,2536.8,0.39447]
[1729776349516,0.9133,2537.0,2536.7,2.46245017]
[1729776349517,0.39449,2536.8,2536.7,2.85693017]
[1729776349817,0.39448,2536.9,2536.8,0.39447]
[1729776350006,0.39449,2536.8,2536.7,2.85694017]
[1729776350207,0.39448,2536.9,2536.8,0.39447]
[1729776350713,1.30777,2537.0,2536.9,0.39447]
[1729776350907,0.83677,2537.0,2536.9,0.39447]
[1729776351916,0.39447,2537.0,2536.9,0.39447]
[1729776353401,3.2078,2537.1,2537.0,0.39444]
[1729776353402,0.39445,2537.1,2537.0,0.39444]
[1729776353703,0.39445,2537.1,2537.0,2.85689017]
[1729776354208,0.86344,2537.2,2537.1,0.39444]
[1729776354713,4.1938,2537.4,2537.1,0.98611]
[1729776354714,3.2078,2537.4,2537.1,0.98611]
[1729776354913,3.2078,2537.4,2537.3,0.39441]
[1729776354914,3.60221,2537.4,2537.3,0.39441]
[1729776355411,0.8621,2537.7,2537.6,0.39436]
[1729776355412,3.60215,2537.7,2537.6,0.39436]
[1729776355811,3.60215,2537.7,2537.6,4.33516]
[1729776356011,3.2078,2537.7,2537.6,4.33516]
[1729776356316,0.98576,2538.0,2537.9,0.39432]
[1729776356317,3.60211,2538.0,2537.9,0.39432]
[1729776356505,3.2078,2538.0,2537.9,0.39432]
[1729776356703,3.6021,2538.0,2537.9,0.39432]
[1729776357104,0.443,2538.2,2537.9,1.358]
[1729776357315,0.3943,2538.1,2538.0,0.39429]
[1729776358017,0.3943,2538.1,2537.9,2.2727]
[1729776358018,0.443,2538.2,2537.9,2.2727]
[1729776358211,0.3943,2538.0,2537.9,1.7523]
[1729776358607,0.3943,2538.0,2537.9,1.358]
[1729776359012,0.3943,2538.0,2537.9,1.75232]
[1729776359222,0.3943,2538.0,2537.9,1.358]
[1729776359416,0.39435,2537.8,2537.7,0.39434]
[1729776359618,0.39435,2537.8,2537.7,1.75234]
[1729776359917,0.39435,2537.8,2537.7,0.39434]
[1729776360222,0.39433,2537.8,2537.7,1.358]
[1729776360407,0.39433,2537.8,2537.7,1.75235]
[1729776361007,0.39433,2537.9,2537.8,0.39433]
[1729776362410,1.42869,2538.2,2537.8,2.46245017]
[1729776362411,0.443,2538.2,2537.8,2.46245017]
[1729776362610,0.443,2538.2,2538.1,2.85674017]
[1729776362611,0.83727,2538.2,2538.1,2.85674017]
[1729776363320,0.83727,2538.2,2538.0,0.39429]
[1729776363321,0.3943,2538.1,2538.0,0.39429]
[1729776364820,0.443,2538.2,2537.9,2.46245017]
[1729776365122,0.3943,2538.0,2537.9,2.85676017]
[1729776365323,0.443,2538.2,2537.9,2.46245017]
[1729776365525,0.443,2538.2,2538.0,0.3943]
[1729776365526,0.3943,2538.1,2538.0,0.3943]
[1729776366213,1.42869,2538.2,2537.8,1.83]
[1729776366418,0.39432,2538.0,2537.9,0.39431]
[1729776366622,0.39432,2538.0,2537.9,2.85676017]
[1729776366816,0.3943,2538.0,2537.9,2.85675017]
[1729776367517,0.3943,2538.1,2538.0,0.39429]
[1729776368123,0.443,2538.2,2537.9,2.46245017]
[1729776368422,0.39429,2538.1,2538.0,0.39429]
[1729776369322,0.39436,2537.7,2537.6,2.85680017]
[1729776369528,0.39434,2537.8,2537.7,0.39435]
[1729776370621,3.9408,2537.8,2537.1,3.2078]
[1729776370825,0.39441,2537.4,2537.3,0.3944]
[1729776371827,0.39439,2537.5,2537.4,0.39438]
[1729776372023,0.39439,2537.5,2537.4,2.46245017]
[1729776372329,0.39441,2537.3,2537.2,3.10530503]
[1729776372628,0.39441,2537.3,2537.2,2.85688017]
[1729776373028,0.39441,2537.3,2537.2,2.46245017]
[1729776373623,0.39447,2536.9,2536.8,3.2078]
[1729776373832,0.98608,2537.2,2536.5,3.90703756]
[1729776373833,4.19392,2537.1,2536.5,3.90703756]
[1729776374128,4.19392,2537.1,2536.5,5.67025017]
[1729776374129,0.39452,2536.6,2536.5,5.67025017]
[1729776374514,0.39452,2536.6,2536.5,3.2078]
[1729776374923,0.39452,2536.6,2536.5,2.4691]
[1729776375132,0.39452,2536.6,2536.0,2.46245017]
[1729776375133,0.3946,2536.1,2536.0,2.46245017]
[1729776376126,0.39464,2535.9,2535.8,2.46245017]
[1729776376426,0.4549,2536.2,2535.8,2.46245017]
[1729776376616,0.39461,2536.0,2535.9,2.46245017]
[1729776377416,3.60241,2536.0,2535.9,2.46245017]
[1729776377825,0.39466,2535.7,2535.6,3.2078]
[1729776378219,0.39466,2535.7,2535.0,2.46245017]
[1729776378220,0.39472,2535.3,2535.0,2.46245017]
[1729776378420,0.9219,2535.6,2535.0,2.46245017]
[1729776378620,0.39472,2535.4,2535.0,2.46245017]
[1729776378822,0.9219,2535.6,2535.2,0.39473]
[1729776379022,0.39472,2535.4,2535.2,0.39473]
[1729776379226,0.39469,2535.5,2535.3,0.39471]
[1729776379422,0.3947,2535.5,2535.3,0.39471]
[1729776379626,0.39472,2535.3,2535.2,2.46245017]
[1729776380025,0.39475,2535.1,2535.0,2.46245017]
[1729776380225,0.39473,2535.3,2535.1,0.39475]
[1729776380425,3.60252,2535.4,2535.2,0.39474]
[1729776380625,3.60252,2535.4,2535.2,2.46245017]
[1729776380930,3.60252,2535.4,2535.3,0.39472]
[1729776381225,3.2078,2535.4,2535.3,0.39472]
[1729776381428,3.2078,2535.4,2535.2,2.46245017]
[1729776381429,3.2078,2535.8,2535.2,2.46245017]
[1729776381621,3.2078,2535.8,2535.7,2.85711017]
[1729776381827,3.60239,2536.2,2536.1,0.3946]
[1729776382218,3.60239,2536.2,2535.7,2.46245017]
[1729776382421,3.60239,2536.2,2536.0,0.3946]
[1729776383030,3.2078,2536.2,2535.8,0.4894]
[1729776383224,0.4486,2536.4,2536.3,0.39456]
[1729776383225,0.39456,2536.4,2536.3,0.39456]
[1729776383428,3.2078,2536.6,2536.1,2.46245017]
[1729776383729,3.2078,2536.6,2536.4,0.39454]
[1729776383730,3.60233,2536.6,2536.4,0.39454]
[1729776384332,0.39456,2536.4,2536.3,0.39456]
[1729776384526,0.39454,2536.5,2536.3,0.39455]
[1729776384724,0.39454,2536.5,2536.1,2.46245017]
[1729776384922,3.2078,2536.6,2536.1,2.46245017]
[1729776385220,3.2078,2536.6,2536.3,0.39456]
[1729776385221,0.39455,2536.5,2536.3,0.39456]
[1729776385727,0.39456,2536.4,2536.3,0.39457]
[1729776386133,3.2078,2536.6,2536.3,0.39457]
[1729776386329,0.39455,2536.5,2536.4,0.39455]
[1729776386629,0.39457,2536.3,2536.2,0.39458]
[1729776386835,3.2078,2536.6,2536.3,0.39456]
[1729776386836,0.39456,2536.4,2536.3,0.39456]
[1729776387140,0.39456,2536.4,2536.2,0.39457]
[1729776387440,0.39456,2536.4,2536.2,0.39458]
[1729776387630,0.39454,2536.5,2536.4,0.39454]
[1729776387827,6.40485017,2536.5,2535.6,3.2078]
[1729776388024,0.39463,2536.0,2535.8,0.39463]
[1729776388222,0.39463,2536.0,2535.5,2.86445017]
[1729776388223,2.46245017,2536.2,2535.3,3.17063774]
[1729776388428,3.2078,2536.0,2535.5,0.39468]
[1729776388826,0.39467,2535.7,2535.5,0.39468]
[1729776389340,0.39467,2535.7,2535.3,3.17063774]
[1729776389341,0.39471,2535.4,2535.3,3.17063774]
[1729776389833,0.3948,2534.8,2534.7,3.2078]
[1729776390027,4.68103,2535.3,2534.7,2.46245017]
[1729776390230,0.39478,2534.9,2534.7,2.46245017]
[1729776390425,4.68103,2535.3,2534.7,2.85725017]
[1729776390426,1.47323,2535.3,2534.7,2.85725017]
[1729776390635,0.3948,2534.8,2534.7,2.85726017]
[1729776390825,0.39479,2534.9,2534.7,2.85725017]
[1729776391028,0.3948,2534.8,2534.7,2.85725017]
[1729776391429,0.3948,2534.9,2534.7,2.85725017]
[1729776391736,0.3948,2534.8,2534.7,0.39481]
[1729776392034,0.39479,2534.9,2534.8,0.3948]
[1729776392228,0.39479,2534.9,2534.5,3.03413907]
[1729776392428,0.39479,2534.9,2534.7,0.3948]
[1729776392735,0.39479,2534.9,2534.8,0.3948]
[1729776392929,0.39479,2534.9,2534.7,0.3948]
[1729776393130,3.6942,2535.3,2534.8,3.03413907]
[1729776393435,3.2078,2535.3,2534.8,3.03413907]
[1729776393629,0.39473,2535.3,2535.2,0.39474]
[1729776394942,3.2078,2535.5,2535.1,3.03413907]
[1729776395240,0.39471,2535.4,2535.3,0.39472]
[1729776395935,3.6025,2535.5,2535.3,0.39472]
[1729776396135,0.39471,2535.4,2535.3,0.39472]
[1729776396435,3.6025,2535.5,2535.3,0.39472]
[1729776396634,0.39471,2535.4,2535.3,0.39472]
[1729776396929,3.2078,2535.5,2535.1,3.28740048]
[1729776397130,3.6025,2535.5,2535.4,0.39471]
[1729776397331,3.6025,2535.5,2535.3,0.39472]
[1729776397332,0.39471,2535.4,2535.3,0.39472]
[1729776397637,3.60249,2535.5,2535.4,0.39471]
[1729776398029,0.4496,2535.7,2535.1,6.49520048]
[1729776398230,0.39471,2535.4,2535.3,0.39471]
[1729776398739,0.39468,2535.6,2535.5,0.39468]
[1729776399042,0.39468,2535.6,2535.1,7.48207048]
[1729776399043,0.39467,2535.7,2535.6,0.39467]
[1729776399344,3.2078,2535.9,2535.1,7.48207048]
[1729776399536,0.39468,2535.6,2535.5,0.39468]
[1729776400739,3.2078,2535.9,2535.3,0.98681]
[1729776401043,0.39467,2535.7,2535.6,0.39467]
[1729776401245,0.3947,2535.5,2535.4,0.39469]
[1729776401432,3.2078,2535.6,2535.1,0.25326141]
[1729776401745,0.39474,2535.2,2535.1,0.39474]
[1729776401947,4.19452,2535.6,2535.0,0.88257]
[1729776401948,0.39475,2535.1,2535.0,0.88257]
[1729776402443,0.39475,2535.2,2535.1,0.39475]
[1729776403736,4.19452,2535.6,2535.0,0.4878]
[1729776403939,3.2078,2535.6,2535.0,0.4878]
[1729776404143,0.39471,2535.4,2535.3,0.3947]
[1729776404342,3.2078,2535.6,2535.0,1.47472]
[1729776404528,3.2078,2535.6,2535.2,0.39473]
[1729776404529,0.39472,2535.3,2535.2,0.39473]
[1729776404734,3.2078,2535.6,2535.4,0.3947]
[1729776404735,0.39469,2535.5,2535.4,0.3947]
[1729776404934,0.39473,2535.3,2535.0,0.4878]
[1729776405143,0.39473,2535.3,2535.2,0.39474]
[1729776406145,3.2078,2535.6,2535.0,0.4878]
[1729776406345,0.39472,2535.4,2535.3,0.39471]
[1729776408038,0.3947,2535.5,2535.4,0.39469]
[1729776408242,0.39469,2535.6,2535.5,0.39468]
[1729776408439,0.39471,2535.5,2535.4,0.39469]
[1729776409445,4.19438,2535.9,2535.5,0.39469]
[1729776409446,0.39469,2535.6,2535.5,0.39469]
[1729776410242,0.39469,2535.6,2535.5,0.39468]
[1729776410437,3.2078,2535.9,2535.4,3.2078]
[1729776410643,3.2078,2535.9,2535.7,0.39464]
[1729776410644,0.39465,2535.8,2535.7,0.39464]
[1729776411351,0.39465,2535.8,2535.5,1.3864]
[1729776411352,3.2078,2535.9,2535.5,2.37313]
[1729776411546,3.60243,2535.9,2535.8,0.39464]
[1729776413352,0.39463,2535.9,2535.8,0.39464]
[1729776414345,0.39461,2536.1,2536.0,0.3946]
[1729776414540,0.39461,2536.1,2535.8,4.92981]
[1729776414541,0.39459,2536.2,2536.1,0.39458]
[1729776414743,3.2078,2536.3,2536.2,0.39458]
[1729776414744,3.60238,2536.3,2536.2,0.39458]
[1729776415048,3.60237,2536.3,2536.2,0.39458]
[1729776415946,3.2078,2536.3,2536.0,1.48554083]
[1729776416140,3.2078,2536.3,2536.2,0.39458]
[1729776416345,0.86115,2536.5,2536.4,0.39455]
[1729776417241,0.39456,2536.4,2536.3,0.39455]
[1729776417843,0.4666,2536.5,2536.2,1.02044083]
[1729776418047,0.86114,2536.5,2536.4,0.39455]
[1729776418442,3.2078,2536.6,2536.5,0.39453]
[1729776418648,3.60233,2536.6,2536.5,0.39453]
[1729776419257,0.39451,2536.7,2536.4,1.02044083]
[1729776419453,0.39451,2536.7,2536.6,0.39451]
[1729776419752,3.6098,2536.9,2536.5,1.41496083]
[1729776419753,0.39452,2536.6,2536.5,1.41496083]
[1729776420046,0.39455,2536.4,2536.3,1.02044083]
[1729776420244,4.19411,2536.6,2536.3,1.14382329]
[1729776420245,0.4481,2536.5,2536.3,1.14382329]
[1729776420441,0.4481,2536.5,2536.3,1.02044083]
[1729776420642,0.39455,2536.4,2536.3,1.02044083]
[1729776421155,0.39457,2536.3,2536.2,1.02044083]
[1729776421343,0.81527,2536.3,2536.2,1.02044083]
[1729776421548,0.81527,2536.3,2536.2,1.14382658]
[1729776422451,0.81527,2536.3,2536.2,1.41502083]
[1729776422647,0.81527,2536.3,2536.2,1.53840203]
[1729776422837,3.2078,2536.6,2536.2,1.53840203]
[1729776422838,3.2078,2536.6,2536.2,1.14382203]
[1729776423039,2.4644077,2536.9,2536.4,0.39454]
[1729776423040,0.39455,2536.5,2536.4,0.39454]
[1729776423443,1.84306,2536.8,2536.3,1.02044083]
[1729776423753,0.39455,2536.4,2536.3,1.41499083]
[1729776423948,3.60235,2536.4,2536.3,1.02044083]
[1729776424555,7.54475,2536.4,2536.3,1.02044083]
[1729776425153,7.1502,2536.4,2536.2,1.02044083]
[1729776425341,0.80917,2536.3,2536.2,1.02044083]
[1729776426548,0.80917,2536.3,2536.2,1.41502083]
[1729776426855,0.39457,2536.3,2536.2,1.41502083]
[1729776427555,0.39457,2536.3,2536.2,0.39458]
[1729776427850,0.3946,2536.2,2536.1,0.39458]
[1729776430354,3.2078,2536.4,2535.9,3.700528]
[1729776430652,0.4146,2536.7,2536.4,0.39453]
[1729776430653,0.39454,2536.5,2536.4,0.39453]
[1729776431254,0.39454,2536.6,2536.5,0.39452]
[1729776431455,0.4207,2536.8,2536.4,0.4441]
[1729776431657,0.39452,2536.7,2536.6,0.3945]
[1729776431858,0.4207,2536.8,2536.5,2.4644077]
[1729776432058,0.39452,2536.6,2536.5,2.8589377]
[1729776432554,0.39452,2536.6,2536.5,0.39453]
[1729776432763,0.39453,2536.5,2536.4,0.8861]
[1729776433058,0.39455,2536.4,2536.3,0.39456]
[1729776433447,0.39455,2536.4,2536.3,0.63935362]
[1729776435151,0.39455,2536.4,2536.3,0.39456]
[1729776435650,0.39457,2536.3,2536.2,0.83567]
[1729776435954,0.39457,2536.3,2536.2,0.4411]
[1729776436151,0.39456,2536.4,2536.3,0.39455]
[1729776436652,0.39457,2536.3,2536.2,0.4411]
[1729776436852,0.39457,2536.3,2536.2,0.685805]
[1729776437358,0.39456,2536.4,2536.3,0.39455]
[1729776437554,0.39455,2536.4,2536.3,0.39455]
[1729776438054,0.39455,2536.5,2536.4,0.39454]
[1729776438255,3.2078,2536.6,2536.3,2.4644077]
[1729776438450,3.60232,2536.6,2536.5,0.39453]
[1729776439161,3.2078,2536.6,2536.2,1.080375]
[1729776439347,0.39457,2536.3,2536.2,1.080375]
[1729776439658,0.39456,2536.4,2536.3,0.39455]
[1729776440260,0.39455,2536.5,2536.4,0.39454]
[1729776440757,3.2078,2536.6,2536.2,0.685805]
[1729776440954,0.39457,2536.3,2536.2,0.244705]
[1729776441153,1.41614,2536.5,2536.1,0.433]
[1729776441352,0.39458,2536.2,2536.1,0.8276]
[1729776441551,0.39458,2536.2,2536.1,1.08189185]
[1729776442856,0.80178,2536.3,2536.2,0.39458]
[1729776443848,0.39458,2536.3,2536.2,0.39458]
[1729776444052,1.41615,2536.5,2536.1,3.15169955]
[1729776444252,0.39458,2536.2,2536.1,3.54627955]
[1729776445059,3.6331,2536.6,2536.1,3.15169955]
[1729776445258,0.39457,2536.4,2536.3,0.39456]
[1729776446361,4.61941,2536.6,2536.2,0.39457]
[1729776446362,0.39458,2536.3,2536.2,0.39457]
[1729776446555,0.39458,2536.2,2536.1,3.54628955]
[1729776447462,0.39458,2536.2,2536.1,1.08188185]
[1729776447660,4.61943,2536.6,2536.1,0.68729185]
[1729776447859,0.39458,2536.3,2536.2,0.83737]
[1729776449564,0.39457,2536.4,2536.3,0.39457]
[1729776450866,0.39457,2536.3,2536.2,0.83738]
[1729776451170,0.39457,2536.3,2536.2,0.96076006]
[1729776452357,0.39457,2536.3,2536.2,0.96076115]
[1729776453068,0.39456,2536.4,2536.3,0.39454]
[1729776453262,0.39456,2536.4,2536.3,0.51792115]
[1729776453867,0.39456,2536.4,2536.3,0.51795115]
[1729776454269,0.39456,2536.4,2536.3,2.98235885]
[1729776455267,0.39455,2536.5,2536.4,0.39453]
[1729776455473,0.39455,2536.5,2536.4,0.51791115]
[1729776457368,0.39455,2536.5,2536.4,0.12338115]
[1729776457768,0.39455,2536.5,2536.4,0.51793115]
[1729776458678,0.39455,2536.5,2536.4,0.71533381]
[1729776458870,0.39455,2536.5,2536.4,0.51793115]
[1729776459171,0.39455,2536.5,2536.4,2.35739782]
[1729776459376,0.39455,2536.5,2536.4,1.96284782]
[1729776459571,0.39455,2536.5,2536.4,0.39455]
[1729776459778,0.39455,2536.5,2536.4,0.51792919]
[1729776459972,0.39455,2536.5,2536.4,0.51792944]
[1729776460169,4.33695,2536.5,2536.4,0.71533574]
[1729776460379,3.9424,2536.4,2535.8,1.50945391]
[1729776460571,0.39472,2535.3,2535.2,0.4069]
[1729776460869,0.39472,2535.3,2535.2,2.50124205]
[1729776461071,0.39472,2535.3,2535.2,2.49408276]
[1729776461271,3.2078,2535.6,2535.2,2.8713077]
[1729776461480,0.98658,2536.0,2535.3,1.46700711]
[1729776461481,0.39469,2535.5,2535.3,1.46700711]
[1729776461679,0.39469,2535.5,2535.4,1.01182501]
[1729776462073,0.39469,2535.6,2535.2,2.8713077]
[1729776462269,0.39469,2535.6,2535.5,0.39469]
[1729776462773,0.39469,2535.5,2535.4,0.39469]
[1729776462969,4.1944,2535.9,2535.2,2.8713077]
[1729776463173,0.39472,2535.3,2535.2,0.80163]
[1729776463373,0.39472,2535.3,2535.2,0.4069]
[1729776465477,0.39475,2535.1,2535.0,4.01176]
[1729776465674,4.633,2535.6,2535.0,4.01176]
[1729776465876,0.39475,2535.1,2535.0,4.01176]
[1729776466667,0.39478,2534.9,2534.8,0.8158]
[1729776468880,0.39478,2534.9,2534.8,1.21059]
[1729776469079,0.39478,2534.9,2534.8,0.8158]
[1729776469281,0.39478,2534.9,2534.8,1.2106]
[1729776469677,3.2078,2535.3,2534.8,0.8158]
[1729776470070,0.39478,2534.9,2534.8,1.21059]
[1729776470275,0.39478,2534.9,2534.8,0.8158]
[1729776470471,0.39478,2534.9,2534.8,1.2106]
[1729776470674,3.6463,2535.6,2534.8,4.7606]
[1729776470876,0.39473,2535.3,2535.2,0.39473]
[1729776471173,0.39473,2535.3,2535.2,0.4163]
[1729776471375,7.54653,2535.3,2534.8,0.4101]
[1729776471571,0.39478,2534.9,2534.8,0.4101]
[1729776472375,0.39478,2534.9,2534.4,3.2078]
[1729776472376,0.39485,2534.5,2534.4,3.2078]
[1729776473283,0.39492,2534.0,2533.9,0.405]
[1729776475773,3.2078,2534.2,2533.9,0.405]
[1729776475975,0.39492,2534.0,2533.9,0.405]
[1729776476174,3.2078,2534.2,2533.7,3.2932677]
[1729776476374,0.39496,2533.8,2533.7,0.4339]
[1729776477081,0.39495,2533.9,2533.7,0.82887]
[1729776477284,0.39496,2533.8,2533.7,0.82887]
[1729776477584,0.39493,2534.0,2533.9,0.39493]
[1729776477980,3.2078,2534.2,2533.7,6.1061077]
[1729776478487,3.2078,2534.2,2534.1,0.39491]
[1729776478676,3.60269,2534.2,2534.1,0.39491]
[1729776479390,3.60269,2534.2,2533.9,2.4644077]
[1729776479391,0.39491,2534.1,2534.0,0.39491]
[1729776479591,3.2078,2534.2,2533.9,2.4644077]
[1729776479780,0.39491,2534.1,2534.0,0.39491]
[1729776480378,3.2078,2534.5,2533.9,2.4644077]
[1729776480588,3.60266,2534.5,2534.4,0.39486]
[1729776480883,3.60266,2534.5,2534.1,2.4644077]
[1729776480884,0.39489,2534.3,2534.2,0.39489]
[1729776481085,0.39489,2534.3,2534.2,0.81049]
[1729776481488,0.39489,2534.3,2534.2,0.4156]
[1729776483096,3.2078,2534.5,2534.3,0.39487]
[1729776483097,0.39488,2534.4,2534.3,0.39487]
[1729776484188,3.60266,2534.5,2534.4,0.39486]
[1729776484588,3.2078,2534.8,2534.3,2.8810077]
[1729776484785,0.39483,2534.7,2534.6,0.39481]
[1729776484985,3.2078,2534.8,2534.4,4.19495]
[1729776485190,3.2078,2534.8,2534.7,0.39481]
[1729776485691,0.39478,2535.0,2534.9,0.39478]
[1729776487496,0.3948,2534.9,2534.8,0.39479]
[1729776487698,0.39478,2535.0,2534.9,0.39477]
[1729776488196,0.39478,2534.9,2534.8,0.81399]
[1729776488392,0.39478,2535.0,2534.9,0.39477]
[1729776488989,3.9448,2535.0,2534.5,1.366]
[1729776489296,0.39485,2534.6,2534.5,0.81405]
[1729776489890,0.39485,2534.6,2534.5,0.4192]
[1729776490199,0.39486,2534.4,2534.3,0.4166]
[1729776492894,4.02785,2534.6,2534.2,0.4192]
[1729776493097,0.39488,2534.3,2534.2,0.4192]
[1729776493894,0.39492,2534.0,2533.9,0.4221]
[1729776499207,3.2078,2534.3,2533.9,2.8865077]
[1729776499412,0.39489,2534.2,2534.1,2.8593077]
[1729776499799,0.39492,2534.1,2534.0,0.3949]
[1729776500400,3.2078,2534.3,2533.9,2.8865077]
[1729776500597,3.2078,2534.3,2533.9,3.8738577]
[1729776500793,0.39489,2534.3,2534.2,0.39489]
[1729776501306,0.39487,2534.4,2534.3,0.39486]
[1729776501507,0.39489,2534.3,2534.2,0.39488]
[1729776501698,0.39491,2534.2,2534.1,0.39489]
[1729776504901,0.39491,2534.2,2534.1,0.64742164]
[1729776505405,0.39491,2534.2,2534.0,0.4427]
[1729776505406,0.39491,2534.1,2534.0,0.83761]
[1729776505594,0.39491,2534.1,2534.0,1.08721018]
[1729776506106,0.39491,2534.1,2534.0,0.69230018]
[1729776506308,0.39491,2534.1,2534.0,1.08722018]
[1729776507703,0.39491,2534.2,2534.1,0.3949]
[1729776508501,3.2078,2534.3,2534.0,0.69230018]
[1729776509000,0.39491,2534.2,2534.1,0.39489]
[1729776509602,3.2078,2534.3,2534.0,0.69230018]
[1729776509811,0.39491,2534.1,2534.0,1.08721018]
[1729776510100,0.39491,2534.1,2534.0,0.69230018]
[1729776510903,0.39491,2534.1,2534.0,0.24960018]
[1729776511108,0.39492,2534.0,2533.9,0.4221]
[1729776511405,3.2078,2534.0,2533.4,2.04755911]
[1729776511607,3.2078,2534.0,2533.3,4.46833]
[1729776511608,0.39502,2533.4,2533.3,4.46833]
[1729776511806,0.39502,2533.4,2533.3,4.59184825]
[1729776512301,0.9876,2533.3,2532.9,2.04755911]
[1729776512518,0.39506,2533.1,2533.0,0.51860371]
[1729776512813,0.39509,2533.0,2532.9,0.39508]
[1729776513003,0.39508,2533.0,2532.9,0.12353842]
[1729776513513,0.3951,2532.9,2532.8,1.69071]
[1729776513916,3.6512,2533.3,2532.5,2.4644077]
[1729776513917,0.98768,2533.1,2532.5,2.4644077]
[1729776514103,0.39514,2532.6,2532.5,3.2883477]
[1729776514313,0.39514,2532.6,2532.5,0.94749313]
[1729776514611,0.39513,2532.7,2532.6,0.39513]
[1729776514811,0.39514,2532.6,2532.5,1.07895001]
[1729776515008,0.39513,2532.7,2532.6,0.39513]
[1729776515416,0.98772,2533.0,2532.5,0.68380001]
[1729776515417,0.39514,2532.6,2532.5,1.07895001]
[1729776515612,0.39513,2532.7,2532.6,0.39513]
[1729776515813,0.39512,2532.8,2532.7,0.39511]
[1729776516009,0.3951,2533.0,2532.9,0.39509]
[1729776516410,4.63882,2533.3,2533.1,0.39506]
[1729776516411,0.39506,2533.2,2533.1,0.39506]
[1729776516819,0.39506,2533.1,2533.0,0.847]
[1729776517024,0.39506,2533.1,2533.0,1.24208]
[1729776517319,0.39506,2533.2,2533.1,0.39505]
[1729776517813,3.2078,2533.6,2533.0,0.847]
[1729776518015,3.2078,2533.6,2533.1,2.4644077]
[1729776518215,0.39501,2533.5,2533.4,0.39501]
[1729776520411,3.6028,2533.6,2533.5,0.395]
[1729776520913,3.2078,2533.6,2533.2,0.4311]
[1729776521110,3.6028,2533.6,2533.5,0.395]
[1729776522217,0.395,2533.6,2533.5,0.395]
[1729776522819,0.39502,2533.5,2533.4,0.39501]
[1729776523316,0.39503,2533.3,2533.2,0.82614]
[1729776523820,3.2078,2533.6,2533.2,0.4311]
[1729776524025,3.2078,2533.6,2533.3,0.39501]
[1729776524026,0.39503,2533.4,2533.3,0.39501]
[1729776524337,0.39502,2533.5,2533.4,0.39501]
[1729776524728,0.98744,2533.7,2533.2,0.4311]
[1729776525027,0.39502,2533.5,2533.4,0.39501]
[1729776525214,0.39503,2533.4,2533.3,0.39503]
[1729776526618,3.2078,2533.6,2533.2,0.4311]
[1729776526819,0.39503,2533.4,2533.3,0.39502]
[1729776527829,3.2078,2533.6,2533.2,0.4311]
[1729776528126,0.39503,2533.4,2533.3,0.39502]
[1729776528325,0.39502,2533.5,2533.4,0.39501]
[1729776529029,3.2078,2533.9,2533.2,0.4311]
[1729776529222,3.2078,2533.9,2533.3,2.4644077]
[1729776529525,0.395,2533.6,2533.5,0.39499]
[1729776529729,0.39498,2533.7,2533.6,0.39498]
[1729776530222,3.2078,2533.9,2533.3,3.4519877]
[1729776530427,0.395,2533.6,2533.5,0.39499]
[1729776531223,0.39502,2533.4,2533.3,0.39502]
[1729776531833,0.39501,2533.5,2533.4,0.395]
[1729776532822,0.98744,2533.7,2533.2,1.41872]
[1729776532823,0.39498,2533.7,2533.6,0.39497]
[1729776533023,3.2078,2533.9,2533.3,6.6597977]
[1729776533024,3.2078,2533.9,2533.3,7.9837977]
[1729776533228,1.39026,2534.2,2533.7,0.39496]
[1729776533229,0.39497,2533.8,2533.7,0.39496]
[1729776533435,0.39497,2533.8,2533.7,1.26176]
[1729776536532,0.98732,2534.0,2533.6,3.2078]
[1729776536738,0.98738,2533.9,2533.3,5.2102977]
[1729776536936,0.395,2533.6,2533.5,0.39499]
[1729776539033,0.395,2533.6,2533.5,3.60279]
[1729776541538,0.395,2533.6,2533.5,3.2078]
[1729776541743,0.395,2533.6,2533.5,0.395]
[1729776542437,0.395,2533.6,2533.5,0.64610621]
[1729776543736,0.395,2533.6,2533.5,0.25110621]
[1729776543926,0.395,2533.6,2533.5,0.395]
[1729776544841,0.98741,2533.8,2533.4,0.4323]
[1729776545042,0.98741,2533.8,2533.5,0.39499]
[1729776545043,0.395,2533.6,2533.5,0.39499]
[1729776545636,0.395,2533.6,2533.5,0.5185]
[1729776546037,0.395,2533.6,2533.5,0.39499]